bitfinex/quotes_ETHUSD_20260216
["timestamp","ask_amount","ask_price","bid_price","bid_amount"]
[1771255751826,0.914,1970.8,1970.3,0.001]
[1771255752638,0.914,1970.8,1970.3,1.42136805]
[1771255754237,0.914,1970.8,1970.4,1.26877791]
[1771255754838,0.914,1970.8,1970.3,1.26979966]
[1771255755525,0.0011,1971.0,1970.4,1.32013276]
[1771255755733,0.527,1970.9,1970.4,1.32013276]
[1771255756437,0.527,1970.9,1970.5,2.58884628]
[1771255756633,0.4291138,1970.9,1970.6,1.32013276]
[1771255757419,0.4291138,1970.9,1970.4,1.26874978]
[1771255758442,0.4291138,1970.9,1970.3,5.07625778]
[1771255759446,0.4291138,1970.9,1970.5,0.001]
[1771255764046,0.0011,1971.0,1970.5,1.32113276]
[1771255764224,0.5271,1971.0,1970.5,1.32113276]
[1771255765153,0.0011,1971.0,1970.5,1.32113276]
[1771255765358,0.5271,1971.0,1970.5,1.32113276]
[1771255767456,0.9161,1971.1,1970.6,2.5887819]
[1771255767652,0.525,1971.0,1970.6,2.5887819]
[1771255769058,0.0011,1971.1,1970.7,1.32013276]
[1771255769423,0.0011,1971.1,1970.8,1.26852039]
[1771255771077,0.0011,1971.1,1970.5,1.26971352]
[1771255771562,0.0011,1971.1,1970.5,0.001]
[1771255771732,1.36660894,1971.1,1970.5,0.001]
[1771255772131,1.36660894,1971.1,1970.6,0.001]
[1771255772337,0.0011,1971.0,1970.6,0.001]
[1771255779642,1.36660894,1971.0,1970.6,0.001]
[1771255779845,20.5,1970.8,1970.6,0.001]
[1771255780047,0.527,1970.7,1970.6,0.001]
[1771255782660,1.442,1970.7,1970.6,0.001]
[1771255783460,1.443,1970.7,1970.6,0.001]
[1771255786339,0.0011,1970.9,1970.6,0.001]
[1771255786540,1.444,1970.8,1970.6,0.001]
[1771255787068,0.529,1970.7,1970.6,0.001]
[1771255787267,0.0011,1970.9,1970.6,0.001]
[1771255787465,20.5,1970.6,1969.8,1.27013868]
[1771255787664,20.5,1970.6,1969.8,0.001]
[1771255788279,20.5,1970.5,1969.8,0.001]
[1771255788480,0.53,1970.4,1969.8,0.001]
[1771255789176,21.79758554,1970.3,1969.8,0.001]
[1771255789376,1.29758554,1970.3,1969.8,0.001]
[1771255790069,1.29758554,1970.3,1969.5,0.001]
[1771255790070,21.79758554,1970.1,1969.5,0.001]
[1771255790264,1.447,1970.0,1969.5,0.001]
[1771255790978,0.533,1969.9,1969.5,1.29248907]
[1771255791277,0.533,1969.8,1969.5,1.29248907]
[1771255791989,0.915,1970.1,1969.5,1.29248907]
[1771255792150,0.533,1970.0,1969.6,1.29148907]
[1771255792477,0.533,1970.0,1969.6,2.56073607]
[1771255792980,0.533,1970.0,1968.8,0.749]
[1771255793164,0.533,1970.0,1969.0,1.29148907]
[1771255794554,0.533,1970.0,1969.2,1.29148907]
[1771255796784,0.533,1970.0,1969.3,0.001]
[1771255797095,0.0011,1969.9,1969.3,0.001]
[1771255798555,21.79758554,1969.7,1969.3,0.001]
[1771255798753,1.29758554,1969.7,1969.3,0.001]
[1771255799183,1.29758554,1969.7,1969.0,0.001]
[1771255799560,1.29868554,1969.9,1969.0,1.29248907]
[1771255799757,20.5,1969.8,1969.0,1.29248907]
[1771255800157,1.29758554,1969.7,1969.0,0.001]
[1771255800359,1.29758554,1969.1,1968.3,0.001]
[1771255800559,1.452,1969.0,1967.9,1.29148907]
[1771255800761,20.5,1968.9,1967.9,1.29148907]
[1771255800967,21.79758554,1968.9,1967.9,1.29148907]
[1771255801301,21.79758554,1968.9,1966.9,1.52522816]
[1771255801302,1.29758554,1968.2,1966.5,1.29148907]
[1771255801482,20.5,1967.8,1966.7,1.29148907]
[1771255801658,20.5,1967.6,1966.6,1.29148907]
[1771255801862,0.18685624,1968.3,1966.5,1.27126305]
[1771255801863,1.29758554,1968.6,1966.8,1.29148907]
[1771255802087,0.1024,1968.8,1966.8,1.29148907]
[1771255802267,1.454,1968.5,1967.2,1.29148907]
[1771255802466,20.5,1968.4,1967.2,1.29148907]
[1771255802871,14.082,1968.9,1967.2,1.29148907]
[1771255803072,0.915,1968.8,1967.5,1.29148907]
[1771255803258,0.541,1968.7,1967.9,1.29148907]
[1771255803465,0.533,1968.7,1967.9,1.29148907]
[1771255803857,0.1024,1969.4,1967.9,1.29148907]
[1771255804188,20.5,1969.3,1967.9,1.29148907]
[1771255804360,20.5,1969.2,1967.9,1.29148907]
[1771255804565,7.299,1969.2,1967.9,1.29148907]
[1771255804799,1.456,1969.1,1967.9,1.29148907]
[1771255805118,20.5,1969.0,1968.0,1.2703252]
[1771255805267,1.39998554,1968.8,1967.2,1.29148907]
[1771255805599,20.5,1967.8,1966.8,1.27108083]
[1771255805803,3.495,1967.8,1966.9,1.29148907]
[1771255806095,0.1024,1968.1,1966.9,1.29148907]
[1771255806096,1.458,1967.7,1966.9,1.29148907]
[1771255806412,20.5,1967.6,1966.6,1.29148907]
[1771255806692,20.5,1967.8,1966.7,1.29148907]
[1771255806891,0.915,1967.5,1966.7,1.29148907]
[1771255807130,0.1024,1968.1,1966.8,1.27110026]
[1771255807269,0.1024,1967.9,1966.8,2.56258933]
[1771255807463,19.27,1967.8,1966.8,2.56258933]
[1771255807987,1.46,1967.7,1966.8,2.56258933]
[1771255808298,20.5,1967.6,1966.8,1.29148907]
[1771255808459,20.5,1967.6,1966.7,1.27112341]
[1771255808661,11.50665767,1968.4,1966.8,1.29148907]
[1771255808662,20.5,1968.2,1966.8,1.29148907]
[1771255808855,20.5,1968.0,1966.8,1.29148907]
[1771255809058,11.318,1968.0,1966.8,1.29148907]
[1771255809293,20.5,1967.8,1967.0,1.29148907]
[1771255809499,20.5,1967.8,1966.9,1.27103563]
[1771255809699,20.5,1967.8,1966.9,1.27213563]
[1771255810388,0.916,1967.7,1967.0,1.29148907]
[1771255810565,1.465,1967.7,1967.0,1.29148907]
[1771255810972,0.001,1968.0,1967.0,1.29148907]
[1771255811318,0.55,1968.0,1967.2,1.29148907]
[1771255811605,0.916,1968.5,1967.4,1.29148907]
[1771255811779,0.549,1968.4,1967.6,1.29148907]
[1771255811981,0.549,1968.3,1967.6,1.29148907]
[1771255812175,0.549,1968.4,1967.6,1.29148907]
[1771255813286,0.549,1968.4,1967.7,2.56200794]
[1771255813484,0.548,1968.3,1967.8,1.29148907]
[1771255813702,20.5,1968.9,1967.8,1.29148907]
[1771255813703,0.916,1968.9,1967.8,1.29148907]
[1771255814002,0.548,1968.6,1967.8,1.29148907]
[1771255815276,0.1024,1969.4,1968.0,1.28476561]
[1771255815474,20.5,1969.2,1968.0,1.28476561]
[1771255816006,0.916,1969.2,1968.0,1.28476561]
[1771255816301,0.548,1969.1,1968.0,1.28476561]
[1771255817282,0.548,1969.2,1968.2,1.28476561]
[1771255817482,20.5,1969.7,1968.2,1.28476561]
[1771255817683,1.28717209,1969.9,1968.4,1.28476561]
[1771255817684,0.9171,1969.9,1968.4,1.28476561]
[1771255817906,20.5,1969.6,1968.6,1.28476561]
[1771255818102,20.5,1969.6,1968.2,1.28476561]
[1771255818711,20.5,1969.5,1968.2,1.28476561]
[1771255819307,20.5,1969.5,1968.3,1.27013158]
[1771255819489,20.5,1969.3,1968.4,1.28476561]
[1771255819784,20.5,1969.3,1968.3,1.27013158]
[1771255820392,1.38847209,1969.2,1967.8,1.28476561]
[1771255820585,9.28615485,1969.4,1967.5,1.28476561]
[1771255820586,21.78607209,1968.8,1967.5,1.28476561]
[1771255820786,20.5,1968.6,1967.6,1.27058345]
[1771255821009,0.916,1968.5,1967.6,1.27058345]
[1771255822134,20.5,1968.4,1967.6,1.27058345]
[1771255822314,20.5,1968.4,1967.5,1.27060192]
[1771255822618,20.5,1968.4,1967.2,1.2708418]
[1771255822916,20.5,1968.4,1967.0,5.84536722]
[1771255822917,20.5,1968.1,1967.0,1.27097102]
[1771255823212,20.5,1967.9,1966.9,1.27209975]
[1771255823588,20.5,1967.9,1966.9,0.0011]
[1771255823996,20.5,1967.8,1966.9,0.0011]
[1771255824196,1.28607209,1967.9,1966.9,0.0011]
[1771255824197,20.5,1967.6,1966.9,0.0011]
[1771255824412,1.473,1967.5,1966.9,0.0011]
[1771255824709,0.557,1967.4,1966.9,0.0011]
[1771255825106,20.5,1967.3,1966.9,0.0011]
[1771255825782,0.1024,1967.9,1966.9,0.0011]
[1771255825996,20.5,1967.6,1966.9,0.0011]
[1771255826201,4.489,1967.6,1966.9,0.0011]
[1771255826401,1.476,1967.5,1966.9,0.0011]
[1771255826919,9.709,1967.6,1966.9,0.0011]
[1771255827154,1.476,1967.4,1966.9,0.0011]
[1771255828020,0.56,1967.3,1966.9,0.0011]
[1771255828327,0.56,1967.3,1966.1,0.003]
[1771255828328,7.81915485,1967.2,1966.1,0.003]
[1771255828501,20.5,1966.9,1966.1,0.003]
[1771255828704,1.28607209,1967.4,1966.1,1.27453535]
[1771255829025,0.561,1966.8,1966.1,2.55930096]
[1771255829200,21.061,1966.7,1966.1,0.003]
[1771255829399,0.561,1966.6,1966.1,1.27453791]
[1771255829822,0.561,1966.6,1966.1,0.003]
[1771255830422,20.5,1966.5,1966.1,0.003]
[1771255830923,2.629,1966.1,1965.1,5.08855632]
[1771255831133,0.916,1966.2,1965.1,5.08855632]
[1771255831426,21.78607209,1966.0,1965.0,1.40509519]
[1771255831625,20.5,1965.8,1965.0,1.40507908]
[1771255831828,20.5,1966.2,1965.0,1.40507908]
[1771255832125,0.916,1966.6,1965.1,1.28476561]
[1771255832298,14.26,1966.4,1965.2,1.28476561]
[1771255832503,5.806,1966.4,1965.2,1.28476561]
[1771255833226,1.485,1966.3,1965.2,1.28476561]
[1771255833430,1.485,1966.3,1965.2,1.23676561]
[1771255833630,0.1024,1966.7,1966.2,0.0011]
[1771255833832,20.5,1966.6,1965.4,1.28476561]
[1771255834037,20.5,1966.3,1965.2,1.27209956]
[1771255834233,1.38847209,1966.4,1966.0,0.0011]
[1771255834531,1.64607209,1966.3,1965.9,0.0011]
[1771255834732,20.5,1966.2,1965.2,1.27209956]
[1771255834938,20.5,1966.1,1965.2,1.27209956]
[1771255835538,20.5,1966.1,1965.0,1.40509539]
[1771255836035,21.78607209,1965.9,1965.0,0.132833]
[1771255836235,1.27157215,1966.1,1965.0,0.132833]
[1771255836236,20.5,1965.7,1965.0,0.132833]
[1771255836433,1.49,1965.6,1965.0,0.132833]
[1771255836638,20.5,1965.7,1965.0,1.40509229]
[1771255836932,0.575,1965.5,1965.0,1.40509229]
[1771255837157,0.575,1965.5,1965.0,0.132833]
[1771255837339,20.5,1965.4,1965.0,0.132833]
[1771255837508,20.5,1965.4,1963.7,1.28476561]
[1771255837509,20.5,1965.2,1963.7,1.28476561]
[1771255837836,1.493,1965.1,1963.7,1.28476561]
[1771255838040,0.1024,1965.5,1963.9,1.28476561]
[1771255838408,20.5,1965.3,1963.9,1.28476561]
[1771255838739,20.5,1965.1,1963.9,1.28476561]
[1771255839034,3.196,1965.1,1963.9,1.28476561]
[1771255839236,0.578,1965.0,1963.9,1.28476561]
[1771255839436,0.579,1965.0,1964.0,1.28476561]
[1771255840018,0.1024,1965.7,1964.2,1.28476561]
[1771255840223,0.578,1965.6,1964.4,1.28476561]
[1771255840418,1.28607209,1966.0,1964.5,1.28476561]
[1771255840637,20.5,1965.8,1964.5,1.28476561]
[1771255841439,20.5,1965.6,1964.5,1.28476561]
[1771255841616,1.28607209,1965.8,1964.5,1.28476561]
[1771255841826,0.581,1965.5,1964.5,1.28476561]
[1771255842019,1.27153602,1966.2,1964.7,1.28476561]
[1771255842020,5.117,1965.8,1964.7,1.28476561]
[1771255842325,0.581,1965.7,1964.7,1.28476561]
[1771255842631,20.4504,1965.6,1964.7,1.28476561]
[1771255842829,0.581,1965.7,1964.7,1.28476561]
[1771255843010,0.581,1965.7,1964.8,1.28476561]
[1771255843553,20.448,1965.6,1964.6,1.27252366]
[1771255844018,20.448,1965.6,1963.8,0.917]
[1771255844215,20.448,1965.4,1964.0,1.23918112]
[1771255844417,1.32036412,1965.5,1964.0,1.23918112]
[1771255844622,20.448,1965.3,1964.1,1.23918112]
[1771255844828,0.584,1965.2,1964.1,1.23918112]
[1771255845443,0.584,1965.4,1964.1,1.23918112]
[1771255846016,0.584,1965.4,1964.2,0.0011]
[1771255846222,20.448,1965.1,1963.9,0.774]
[1771255846421,21.365,1965.1,1964.0,0.0011]
[1771255846643,20.448,1965.0,1964.0,0.0011]
[1771255846839,0.584,1964.9,1964.0,0.0011]
[1771255847151,2.23736412,1965.1,1964.0,1.24028112]
[1771255847152,0.585,1965.1,1964.0,1.24028112]
[1771255847519,0.586,1965.4,1964.0,1.24028112]
[1771255848144,0.586,1965.4,1964.1,3.1561658]
[1771255848345,0.586,1965.4,1964.2,1.88331819]
[1771255848547,0.586,1965.4,1964.3,0.776]
[1771255848843,20.448,1965.3,1964.3,0.776]
[1771255849040,20.448,1965.3,1964.2,0.777]
[1771255849246,0.586,1965.4,1964.2,2.66031819]
[1771255849569,0.001,1965.4,1964.2,2.66031819]
[1771255849846,0.586,1965.3,1964.2,2.66031819]
[1771255850245,0.001,1965.4,1964.4,1.88331819]
[1771255851722,0.001,1965.4,1964.5,1.88331819]
[1771255852042,0.001,1965.4,1964.6,0.779]
[1771255852342,0.001,1965.4,1964.7,1.27245889]
[1771255853425,1.90878606,1965.4,1964.0,5.09243654]
[1771255853737,1.90878606,1965.4,1964.3,0.78]
[1771255853738,1.90778606,1965.3,1964.3,0.78]
[1771255854338,1.90778606,1965.3,1964.4,1.27265322]
[1771255854654,1.90778606,1964.9,1963.2,0.917]
[1771255854886,1.90778606,1964.6,1962.2,1.5283509]
[1771255855154,1.90778606,1964.6,1962.9,7.81915485]
[1771255855155,2.27578443,1964.3,1962.9,7.81915485]
[1771255855454,0.587,1964.5,1962.5,7.81915485]
[1771255855455,20.448,1964.0,1962.5,7.81915485]
[1771255855659,2.27578443,1963.8,1962.5,8.60315485]
[1771255856229,2.27578443,1963.6,1962.5,0.784]
[1771255856580,2.27578443,1963.4,1962.3,5.8805414]
[1771255856731,0.589,1963.3,1962.3,5.8805414]
[1771255857140,2.79678443,1963.8,1962.4,9.00806974]
[1771255857339,2.27578443,1963.6,1962.3,5.0955414]
[1771255857651,2.27578443,1964.1,1962.5,7.81915485]
[1771255857849,2.27578443,1964.0,1962.6,2.1180829]
[1771255858057,2.27578443,1963.8,1962.7,0.787]
[1771255858232,0.917,1964.3,1962.7,0.787]
[1771255858233,2.86478443,1963.7,1962.7,0.787]
[1771255858438,2.86478443,1963.7,1962.8,1.27369064]
[1771255859147,2.27578443,1963.6,1962.8,1.27369064]
[1771255859347,2.27578443,1964.5,1962.8,1.27369064]
[1771255859557,2.27578443,1964.1,1962.8,1.27369064]
[1771255859938,2.27578443,1963.9,1962.8,1.27369064]
[1771255860180,1.506,1964.4,1962.8,1.27369064]
[1771255860181,2.86478443,1963.8,1962.8,1.27369064]
[1771255860335,2.27578443,1963.7,1962.8,1.27369064]
[1771255860856,2.27578443,1963.7,1962.4,5.88176258]
[1771255861040,2.27578443,1963.6,1962.5,5.09528176]
[1771255861364,2.86478443,1963.5,1962.5,5.09528176]
[1771255861562,2.27578443,1964.4,1962.7,8.96884168]
[1771255861769,0.917,1963.9,1962.8,0.787]
[1771255861934,2.27578443,1963.9,1962.8,0.787]
[1771255862542,2.27578443,1963.9,1962.9,1.27362575]
[1771255862981,0.588,1963.8,1962.9,1.27362575]
[1771255864178,2.27578443,1963.7,1962.4,5.09530026]
[1771255864389,2.27578443,1963.3,1961.9,1.27427493]
[1771255864689,2.27578443,1963.3,1961.1,1.50178781]
[1771255864690,2.27578443,1962.2,1960.0,0.2019451]
[1771255864905,2.27578443,1961.7,1958.9,0.00347753]
[1771255865045,2.27578443,1959.4,1958.3,1.02773161]
[1771255865246,0.26535789,1959.7,1957.3,0.00995698]
[1771255865247,16.42378443,1959.3,1957.7,5.35]
[1771255865466,2.27578443,1959.1,1956.4,1.53339023]
[1771255865778,2.27578443,1958.4,1956.5,5.11064547]
[1771255865949,2.27578443,1958.0,1956.5,1.27779197]
[1771255866270,1.89859251,1957.6,1956.2,5.1119383]
[1771255866484,1.90778606,1957.3,1955.4,7.81915485]
[1771255866643,1.90778606,1956.9,1955.3,1.28141347]
[1771255866842,1.90778606,1956.7,1955.3,1.28141347]
[1771255867150,5.780353,1957.7,1956.3,7.81915485]
[1771255867475,5.780353,1957.8,1955.8,2.25817202]
[1771255867777,5.780353,1957.8,1955.3,1.28141347]
[1771255867778,0.33069303,1957.6,1955.3,1.27854383]
[1771255867946,0.918,1957.8,1955.6,1.88331819]
[1771255868150,5.780353,1958.4,1955.7,0.918]
[1771255868376,1.90778606,1958.3,1956.1,1.88331819]
[1771255868679,5.780353,1958.1,1956.0,1.88331819]
[1771255868843,7.68813906,1958.1,1956.2,0.876]
[1771255869169,5.780353,1957.8,1956.3,0.18685624]
[1771255869355,0.663,1957.7,1956.2,0.876]
[1771255869538,1.582,1957.7,1955.6,1.88331819]
[1771255869743,1.90778606,1957.3,1955.0,0.886]
[1771255869939,8.06052697,1958.1,1955.8,9.94384516]
[1771255869940,0.85085624,1958.0,1955.8,9.94384516]
[1771255870138,5.780353,1957.9,1956.2,0.1024]
[1771255870348,0.665,1957.9,1956.2,0.1024]
[1771255870541,0.665,1957.9,1956.7,9.33818833]
[1771255870740,0.665,1957.9,1956.6,5.11064547]
[1771255870741,0.665,1957.9,1956.2,3.16127312]
[1771255870980,0.665,1957.9,1956.3,0.18685624]
[1771255871187,1.90778606,1957.7,1956.2,0.894]
[1771255871398,0.1024,1957.2,1954.9,8.95752697]
[1771255871580,5.66498,1956.8,1954.9,10.84084516]
[1771255871778,5.66498,1956.8,1956.0,0.0011]
[1771255872098,7.57276606,1956.6,1954.7,0.919]
[1771255872410,0.919,1957.3,1955.2,1.88331819]
[1771255872553,0.919,1957.3,1955.3,0.1024]
[1771255872554,7.57276606,1957.1,1955.3,0.1024]
[1771255872751,5.66498,1957.0,1955.4,8.06586511]
[1771255872983,1.599,1957.3,1955.1,0.912]
[1771255872984,7.57276606,1957.2,1955.1,8.97786511]
[1771255873203,7.57276606,1957.0,1954.9,1.88331819]
[1771255873403,1.90778606,1957.0,1955.0,2.79631819]
[1771255873608,7.57276606,1956.7,1954.5,11.22825936]
[1771255873751,4.06054196,1956.4,1954.0,8.06586511]
[1771255873950,9.72552196,1956.1,1954.0,13.29962011]
[1771255874180,5.66498,1955.8,1954.0,8.06586511]
[1771255874389,1.33349998,1956.9,1955.2,8.06586511]
[1771255874702,5.66498,1958.0,1956.1,8.06586511]
[1771255874853,5.66498,1957.8,1956.0,0.919]
[1771255875050,5.66498,1958.3,1956.5,8.06586511]
[1771255875246,5.66498,1958.3,1956.2,0.18685624]
[1771255875247,9.72552196,1958.1,1956.3,0.919]
[1771255875482,9.72552196,1958.0,1956.3,0.919]
[1771255875656,4.06054196,1958.0,1956.3,0.919]
[1771255875859,5.39730071,1959.3,1956.3,0.919]
[1771255875860,4.06054196,1958.5,1956.8,8.06586511]
[1771255876069,4.06054196,1958.5,1956.9,0.919]
[1771255876070,0.687,1958.4,1956.9,0.919]
[1771255876272,4.06054196,1959.5,1957.4,0.28925624]
[1771255876581,5.66498,1959.2,1957.2,0.1024]
[1771255876906,5.66498,1959.0,1957.1,0.18685624]
[1771255877047,5.66498,1959.0,1957.4,8.06586511]
[1771255877252,9.72552196,1959.0,1957.0,2.19744824]
[1771255877492,5.66498,1958.9,1957.0,2.19744824]
[1771255877648,8.06586511,1958.5,1957.0,0.92]
[1771255877857,9.72552196,1958.2,1956.2,2.19598793]
[1771255878090,4.06054196,1957.8,1956.0,0.92]
[1771255878254,4.06054196,1957.6,1955.7,1.27828149]
[1771255878450,0.1024,1958.5,1955.7,1.27828149]
[1771255878451,4.06054196,1957.9,1955.8,4.87233847]
[1771255878649,0.686,1958.0,1956.4,0.1024]
[1771255878879,0.686,1957.9,1956.4,0.918]
[1771255879293,4.06054196,1957.7,1955.9,1.27818395]
[1771255879476,9.72552196,1957.6,1955.9,1.27818395]
[1771255879688,4.06054196,1957.2,1955.6,1.27838003]
[1771255880018,5.66498,1956.4,1955.1,1.2786584]
[1771255880295,4.06054196,1956.0,1954.3,1.27916496]
[1771255880455,4.06054196,1954.7,1953.1,0.132833]
[1771255880656,4.06054196,1954.5,1952.6,1.45365768]
[1771255881056,4.06054196,1954.5,1952.3,9.07571509]
[1771255881260,5.66498,1954.2,1952.3,5.12137662]
[1771255881472,0.686,1954.1,1952.4,8.06586511]
[1771255881785,0.686,1954.1,1952.3,5.12137662]
[1771255882553,4.06054196,1953.9,1952.3,5.12137662]
[1771255882793,8.06586511,1954.4,1952.3,5.12137662]
[1771255882794,4.06054196,1954.4,1952.3,5.12137662]
[1771255883005,0.687,1954.0,1952.4,8.98486511]
[1771255883283,9.72552196,1953.7,1952.3,1.2805409]
[1771255883451,5.66498,1953.5,1952.3,1.2805409]
[1771255883653,5.66498,1953.4,1952.0,1.2807377]
[1771255883863,8.06586511,1954.2,1952.0,1.2807377]
[1771255883864,0.921,1953.7,1952.0,1.2807377]
[1771255884083,0.921,1955.0,1952.9,8.06586511]
[1771255884269,5.66498,1954.8,1953.0,1.84]
[1771255884469,0.687,1954.7,1953.0,1.28008192]
[1771255884668,4.06054196,1954.6,1953.0,1.28008192]
[1771255884985,5.66498,1954.7,1952.5,1.28036684]
[1771255884986,5.66498,1954.3,1952.5,1.28036684]
[1771255885182,9.72552196,1954.3,1952.5,1.28036684]
[1771255885407,0.921,1954.3,1952.5,1.28036684]
[1771255885564,0.921,1954.3,1952.9,8.06586511]
[1771255886062,4.06054196,1955.5,1953.1,4.05673847]
[1771255886288,0.686,1955.5,1953.8,0.18685624]
[1771255886600,3.071,1956.7,1953.8,0.18685624]
[1771255886601,0.921,1957.1,1954.7,0.18685624]
[1771255886832,0.921,1957.1,1955.2,0.1024]
[1771255887100,0.687,1957.6,1955.9,0.1024]
[1771255887398,4.06054196,1957.4,1956.0,0.921]
[1771255887602,4.06054196,1957.4,1954.9,11.13786511]
[1771255887603,5.66498,1957.0,1955.2,0.918]
[1771255887755,1.607,1956.9,1955.2,0.918]
[1771255888084,8.06586511,1956.8,1955.2,0.918]
[1771255888321,4.06054196,1956.2,1954.2,5.11692165]
[1771255888544,4.06054196,1957.5,1954.7,4.05673847]
[1771255888783,4.06054196,1957.5,1955.0,0.18685624]
[1771255888784,0.921,1957.2,1955.0,0.18685624]
[1771255888992,4.06054196,1957.5,1955.2,4.14119471]
[1771255889163,5.66498,1957.3,1955.2,4.24359471]
[1771255889359,5.66498,1957.1,1955.1,1.838]
[1771255889807,5.66498,1956.7,1955.1,1.838]
[1771255890086,4.06054196,1956.8,1955.1,1.838]
[1771255890290,9.72552196,1956.3,1955.1,0.921]
[1771255890468,5.66498,1956.1,1955.1,0.921]
[1771255890664,0.685,1956.2,1955.1,0.921]
[1771255890665,4.06054196,1956.3,1955.1,2.19969162]
[1771255890887,0.685,1956.2,1955.1,2.19969162]
[1771255891393,5.66498,1956.1,1954.6,0.916]
[1771255891690,5.66498,1955.9,1954.4,1.27916496]
[1771255891892,4.06054196,1956.0,1954.4,1.27916496]
[1771255892079,0.685,1956.2,1954.3,1.27918879]
[1771255892080,9.72552196,1955.9,1954.3,1.27918879]
[1771255892263,5.58011711,1955.8,1954.3,1.27918879]
[1771255892462,1.605,1955.7,1954.3,1.27918879]
[1771255892659,1.605,1955.7,1954.1,1.27936134]
[1771255892859,5.66498,1955.4,1954.1,1.27936134]
[1771255893102,2.639,1955.4,1953.8,0.921]
[1771255893258,12.01400953,1955.1,1953.3,5.11931339]
[1771255893458,3.60309586,1955.0,1953.3,5.11931339]
[1771255893673,9.72552196,1954.8,1953.2,1.27995084]
[1771255893904,9.72552196,1954.8,1952.5,5.11954128]
[1771255893905,4.06054196,1953.9,1952.3,1.28161751]
[1771255894072,5.66498,1953.7,1952.3,1.28161751]
[1771255894399,2.28848757,1954.0,1952.7,8.06586511]
[1771255894595,3.43273136,1954.2,1952.9,0.1024]
[1771255894596,2.28848757,1954.2,1952.9,0.1024]
[1771255894765,2.28848757,1954.3,1952.8,1.28021302]
[1771255894966,7.95346757,1954.0,1952.5,0.912]
[1771255895178,0.683,1953.9,1952.5,0.912]
[1771255895381,5.66498,1953.3,1952.3,0.0011]
[1771255895598,2.28848757,1953.3,1952.3,1.28163381]
[1771255895773,0.93158824,1953.5,1952.3,2.19263381]
[1771255895973,0.93158824,1953.5,1952.3,1.28163381]
[1771255896173,3.22007581,1953.5,1952.3,1.2816255]
[1771255896375,3.22007581,1953.5,1952.4,0.0011]
[1771255896796,0.93158824,1953.5,1952.6,8.06586511]
[1771255896966,0.93158824,1953.5,1952.4,0.0011]
[1771255897174,0.93158824,1953.5,1951.9,1.12485637]
[1771255897175,5.66498,1953.2,1951.9,1.12485637]
[1771255897369,5.66498,1953.2,1951.1,5.12526896]
[1771255897370,4.06054196,1952.8,1951.1,5.12526896]
[1771255897579,4.06054196,1952.8,1951.0,1.29009645]
[1771255897580,3.243,1952.0,1951.0,1.29009645]
[1771255897791,4.06054196,1952.1,1950.2,1.2819198]
[1771255897792,5.66498,1951.8,1950.2,1.2819198]
[1771255898103,0.683,1952.2,1950.9,8.06586511]
[1771255898284,2.037,1952.1,1950.3,5.12732534]
[1771255898477,2.28848757,1952.2,1950.3,6.03832534]
[1771255898795,5.66498,1952.6,1950.7,8.06586511]
[1771255898981,2.28848757,1952.4,1950.8,0.911]
[1771255899178,2.28848757,1952.4,1950.3,5.12732534]
[1771255899397,2.28848757,1951.8,1950.1,1.28198553]
[1771255899585,5.66498,1951.6,1950.1,1.28198553]
[1771255899881,8.06586511,1950.6,1949.1,0.132833]
[1771255900203,8.06586511,1950.6,1947.6,1.66528404]
[1771255900204,0.132833,1949.0,1947.6,1.40862881]
[1771255900500,5.66498,1949.7,1947.6,1.40862881]
[1771255900687,0.00369,1949.7,1947.8,8.06586511]
[1771255900911,2.28848757,1950.6,1948.7,8.06586511]
[1771255901133,2.28848757,1951.0,1948.8,0.922]
[1771255901304,9.78326277,1951.8,1949.3,0.1024]
[1771255901305,2.28848757,1951.6,1949.3,0.1024]
[1771255901504,3.21048757,1952.2,1949.8,0.1024]
[1771255901811,5.66498,1952.2,1950.3,0.1024]
[1771255902121,2.28848757,1952.9,1950.9,0.18685624]
[1771255902374,2.92009588,1953.2,1951.4,0.18685624]
[1771255902690,2.92009588,1953.2,1952.2,8.06586511]
[1771255902835,2.92009588,1953.2,1952.2,0.922]
[1771255903035,2.86009588,1953.2,1952.2,0.922]
[1771255903535,2.86009588,1953.2,1951.7,2.20291386]
[1771255903760,6.58698,1953.1,1951.7,2.20291386]
[1771255903960,2.74399642,1953.2,1951.8,0.28925624]
[1771255904139,2.74399642,1953.2,1951.8,0.1024]
[1771255904655,2.74399642,1953.2,1952.1,1.28067209]
[1771255905552,2.74399642,1953.2,1952.1,1.25987209]
[1771255906141,5.66498,1953.1,1951.5,1.2810002]
[1771255906337,5.66498,1953.1,1951.6,5.1238012]
[1771255906570,2.74399642,1953.2,1950.1,1.53837387]
[1771255906571,5.66498,1952.6,1950.1,1.53837387]
[1771255906773,3.99331555,1952.7,1950.4,8.06586511]
[1771255906774,5.66498,1952.4,1950.4,8.06586511]
[1771255906974,0.923,1952.4,1950.5,0.1024]
[1771255907435,5.66498,1952.2,1951.0,0.003]
[1771255907633,7.95346757,1951.9,1950.1,1.53837387]
[1771255907873,2.92930425,1951.8,1950.1,1.53837387]
[1771255908169,2.92872212,1951.7,1950.2,0.1024]
[1771255908369,2.92998561,1951.6,1950.1,1.53837387]
[1771255908563,2.28848757,1952.2,1950.1,1.53837387]
[1771255908746,2.28848757,1952.2,1950.2,0.1024]
[1771255908747,2.93028185,1952.1,1950.2,0.1024]
[1771255908952,2.93070738,1952.0,1950.2,0.1024]
[1771255909146,2.28848757,1952.3,1950.2,0.1024]
[1771255909473,2.74399642,1951.5,1951.1,0.0011]
[1771255909673,0.923,1952.3,1951.1,0.0011]
[1771255909876,2.93469635,1952.2,1951.1,0.0011]
[1771255910051,6.34560236,1951.9,1950.8,0.0011]
[1771255910244,9.72209479,1951.4,1950.0,1.28204742]
[1771255910443,2.93469635,1951.3,1950.0,1.28204742]
[1771255910742,4.05711479,1951.4,1949.9,5.12824612]